fUST/lending_fUST_20240716
["ID","MTS","AMOUNT","RATE_DAILY","PERIOD"]
[332329304,1721121029724,184.27798629,0.00014999,2]
[332329305,1721121029788,154.65203293,0.00014999,2]
[332329306,1721121029857,154.65203293,0.00014999,2]
[332329307,1721121030494,155.02746571,0.00014999,2]
[332329308,1721121030996,10596.86547565,0.00014998,2]
[332329309,1721121031115,200.58953137,0.00014999,2]
[332329318,1721121032044,950.73004336,0.00015,2]
[332329319,1721121032100,305.58736075,0.00014999,2]
[332329349,1721121032687,526.04810475,0.00014999,2]
[332329350,1721121032912,209.51230499,0.00014999,2]
[332329351,1721121033324,163.75884809,0.00014999,2]
[332329352,1721121033610,196.80069681,0.00014999,2]
[332329353,1721121033699,242.51556273,0.00014999,2]
[332329354,1721121034361,160.2295645,0.00014999,2]
[332329355,1721121034664,778.26945323,0.00014999,2]
[332329356,1721121035964,154.65203293,0.00014999,2]
[332329357,1721121036270,283.70600683,0.00014999,2]
[332329358,1721121036361,165.06264209,0.00014999,2]
[332329359,1721121036866,377.20712064,0.00014999,2]
[332329360,1721121037253,530.77047435,0.00014999,2]
[332329361,1721121037779,154.65203293,0.00014999,2]
[332329362,1721121037823,309.02656632,0.00014999,2]
[332329363,1721121037866,165.35665673,0.00014999,2]
[332329385,1721121038239,3084.27178295,0.00014999,2]
[332329406,1721121038489,-201.18725967,0.00016255,2]
[332329408,1721121038500,-532.91507257,0.00016255,2]
[332329410,1721121038509,-403.99333324,0.00016255,2]
[332329412,1721121038518,-154.65203293,0.00016255,2]
[332329414,1721121038527,-532.91507257,0.00016255,2]
[332329416,1721121038536,-778.26945323,0.00016255,2]
[332329417,1721121038546,-154.65203293,0.00016255,2]
[332329419,1721121038555,-610.9229969,0.00016255,2]
[332329421,1721121038565,-1045.38119164,0.00016255,2]
[332329423,1721121038574,-201.18725967,0.00016255,2]
[332329425,1721121038583,-154.65203293,0.00016255,2]
[332329439,1721121038698,-272.41053398,0.00016255,2]
[332329441,1721121038729,-169.82584625,0.00016255,2]
[332329443,1721121038739,-156.52051287,0.00016255,2]
[332329445,1721121038749,-165.76744035,0.00016255,2]
[332329447,1721121038758,-403.99333324,0.00016255,2]
[332329449,1721121038767,-304.11154688,0.00016255,2]
[332329450,1721121038777,-909.86541128,0.00016255,2]
[332329452,1721121038786,-492.90786688,0.00016255,2]
[332329454,1721121038795,-175.11082601,0.00016255,2]
[332329456,1721121038804,-303.92149393,0.00016255,2]
[332329458,1721121038814,-175.4731732,0.00016255,2]
[332329459,1721121038823,-154.65203293,0.00016255,2]
[332329461,1721121038832,-268.34539213,0.00016255,2]
[332329463,1721121038841,-155.84543471,0.00016255,2]
[332329465,1721121038850,-155.72868377,0.00016255,2]
[332329467,1721121038860,-993.57430548,0.00016255,2]
[332329468,1721121038869,-158.42546099,0.00016255,2]
[332329470,1721121038879,-155.64887406,0.00016255,2]
[332329472,1721121038890,-154.79593399,0.00016255,2]
[332329474,1721121038899,-2424.98079173,0.00016255,2]
[332329476,1721121038908,-196.48669242,0.00016255,2]
[332329478,1721121038918,-156.52051287,0.00016255,2]
[332329479,1721121038927,-909.86541128,0.00016255,2]
[332329481,1721121038937,-2130.46951269,0.00016255,2]
[332329483,1721121038947,-154.65203293,0.00016255,2]
[332329485,1721121038956,-154.65203293,0.00016255,2]
[332329487,1721121038966,-309.14988714,0.00016255,2]
[332329489,1721121038975,-154.65203293,0.00016255,2]
[332329491,1721121038985,-192.11742369,0.00016255,2]
[332329492,1721121038995,-154.65203293,0.00016255,2]
[332329494,1721121039005,-154.65203293,0.00016255,2]
[332329496,1721121039016,-1081.38867872,0.00016255,2]
[332329498,1721121039026,-309.09346704,0.00016255,2]
[332329500,1721121039039,-4140.93759978,0.00016255,2]
[332329501,1721121039052,-157.275487,0.00017515,2]
[332329503,1721121039061,-157.275487,0.00017565,2]
[332329505,1721121039074,-157.275487,0.00017616,2]
[332329507,1721121039085,-157.275487,0.00017667,2]
[332329509,1721121039098,-2159.5085471,0.00017669,2]
[332329511,1721121039108,-157.275487,0.00017717,2]
[332329512,1721121039119,-293.1127166,0.00017761,2]
[332329514,1721121039129,-157.275487,0.00017768,2]
[332329516,1721121039142,-157.275487,0.00017819,2]
[332329518,1721121039151,-157.275487,0.0001787,2]
[332329520,1721121039160,-157.275487,0.0001792,2]
[332329522,1721121039170,-157.275487,0.00017971,2]
[332329523,1721121039178,-157.275487,0.00018022,2]
[332329525,1721121039187,-157.275487,0.00018072,2]
[332329527,1721121039196,-157.275487,0.00018123,2]
[332329529,1721121039206,-157.275487,0.00018174,2]
[332329531,1721121039215,-151.0,0.0001818,2]
[332329533,1721121039227,-151.0,0.0001818,2]
[332329534,1721121039237,-427.57456427,0.0001818,2]
[332329536,1721121039246,-288.46775524,0.0001818,2]
[332329538,1721121039256,-1493.64161724,0.0001818,2]
[332329540,1721121039266,-196.09695636,0.0001818,2]
[332329542,1721121039275,-253.40377316,0.0001818,2]
[332329544,1721121039284,-2104.88948582,0.0001818,2]
[332329546,1721121039294,-154.65203293,0.0001818,2]
[332329547,1721121039303,-409.34155169,0.0001818,2]
[332329549,1721121039314,-4703.84902292,0.0001818,2]
[332329551,1721121039323,-239.08278239,0.0001818,2]
[332329553,1721121039333,-412.90135529,0.0001818,2]
[332329555,1721121039342,-1989.67183354,0.0001818,2]
[332329556,1721121039352,-3778.72551572,0.0001818,2]
[332329558,1721121039362,-16264.73280907,0.0001818,2]
[332329560,1721121039371,-352.47043732,0.0001818,2]
[332329562,1721121039381,-6964.40811687,0.0001818,2]
[332329563,1721121039392,-2132.68479145,0.0001818,2]
[332329564,1721121039401,-154.65203293,0.0001818,2]
[332329565,1721121039410,-458.86286892,0.0001818,2]
[332329566,1721121039419,-726.14786698,0.0001818,2]
[332329567,1721121039428,-157.275487,0.00018225,2]
[332329568,1721121039437,-157.275487,0.00018275,2]
[332329569,1721121039446,-157.275487,0.00018326,2]
[332329570,1721121039455,-157.275487,0.00018377,2]
[332329571,1721121039466,-157.275487,0.00018427,2]
[332329572,1721121039475,-30000.0,0.00018898,2]
[332329573,1721121039485,-151.0,0.00018898,2]
[332329574,1721121039494,-151.0,0.00018898,2]
[332329575,1721121039504,-314.13224773,0.000189,2]
[332329576,1721121039514,-154.68436526,0.0002,2]
[332329577,1721121039523,-154.78015139,0.0002,2]
[332329578,1721121039533,-314.73408051,0.00021,2]
[332329579,1721121039542,-1000.0,0.00021,21]
[332329580,1721121039551,-154.65203293,0.00021095,2]
[332329581,1721121039562,-337.883028,0.00021096,2]
[332329582,1721121039571,-153.0,0.000211,2]
[332329583,1721121039581,-1407.0,0.00021479,2]
[332329584,1721121039590,-151.0,0.00021789,2]
[332329585,1721121039600,-47619.20714373,0.0002179,3]
[332329733,1721121041110,160.0,0.00014999,2]
[332329739,1721121041158,271.83283322,0.00014999,2]
[332329757,1721121041319,5509.92739811,0.00014998,2]
[332329859,1721121042297,-566.51016595,0.0001818,2]
[332329861,1721121042307,-174.06915012,0.0001818,2]
[332329863,1721121042318,-154.65203293,0.0001818,2]
[332329865,1721121042327,-154.65203293,0.00021095,2]
[332329867,1721121042338,-2887.49658467,0.0002179,3]
[332329869,1721121042347,-290.05,0.0002179,3]
[332329871,1721121042357,-151.0,0.0002179,2]
[332329873,1721121042366,-185.81118236,0.00021799,2]
[332329875,1721121042376,-500.0,0.00021799,2]
[332329877,1721121042389,-500.0,0.00021799,2]
[332329879,1721121042399,-237.18979884,0.00021799,2]
[332329881,1721121042409,-323.17369998,0.00021799,2]
[332329883,1721121042419,-500.0,0.00021799,2]
[332329885,1721121042428,-500.0,0.00021799,2]
[332329888,1721121042449,-500.0,0.00021799,2]
[332329890,1721121042474,-637.68499696,0.00021799,2]
[332329892,1721121042499,-500.0,0.00021799,2]
[332329893,1721121042524,-250.0,0.00021799,2]
[332329896,1721121042550,-196.21291979,0.000218,5]
[332329898,1721121042584,-145419.93409583,0.000218,3]
[332329900,1721121042612,-151.0,0.000218,2]
[332329902,1721121042623,-16835.5679095,0.0002189,3]
[332329904,1721121042636,-151.0,0.00021897,2]
[332329906,1721121042646,-16835.5679095,0.00021897,3]
[332329908,1721121042655,-151.0,0.00021899,2]
[332329910,1721121042664,-152.792904,0.00021899,2]
[332329912,1721121042673,-151.0,0.00021899,2]
[332329914,1721121042683,-156.976629,0.00021899,2]
[332329916,1721121042692,-267.122482,0.00021899,2]
[332329918,1721121042701,-159.229844,0.00021899,2]
[332329920,1721121042711,-159.229844,0.00021899,2]
[332329922,1721121042720,-151.0,0.00021899,2]
[332329924,1721121042729,-151.0,0.00021899,2]
[332329926,1721121042738,-45138.46690238,0.000219,2]
[332329928,1721121042747,-524.51189898,0.000219,2]
[332329930,1721121042763,-2475.48810102,0.000219,2]
[332329932,1721121042773,-151.0,0.000219,2]
[332329934,1721121042782,-151.0,0.000219,2]
[332329936,1721121042791,-159.229844,0.000219,2]
[332329938,1721121042801,-159.229844,0.000219,2]
[332329940,1721121042810,-151.0,0.000219,2]
[332329942,1721121042820,-151.0,0.000219,2]
[332329944,1721121042829,-13833.77604344,0.00021907,5]
[332329947,1721121042839,-71593.77228452,0.00021907,3]
[332329953,1721121042891,532.91507257,0.00014999,2]
[332329954,1721121042943,310.0,0.00023658,120]
[332329965,1721121043077,154.65203293,0.00014999,2]
[332329974,1721121043120,2104.88948582,0.00014999,2]
[332329981,1721121043171,154.65203293,0.00014999,2]
[332330063,1721121043881,-189.51973353,0.00016255,2]
[332330066,1721121043895,-154.65203293,0.0001818,2]
[332330068,1721121043906,-150.0,0.00021789,2]
[332330070,1721121043915,-210.0,0.00021789,2]
[332330072,1721121043924,-6915.67042121,0.00021907,3]
[332330406,1721121047047,610.9229969,0.00015,2]
[332330613,1721121049185,1045.38119164,0.00015,2]
[332330632,1721121049356,160.2295645,0.00014999,2]
[332330714,1721121050124,154.65203293,0.00014999,2]
[332330879,1721121051699,154.65203293,0.00014999,2]
[332330905,1721121051929,403.99333324,0.00014999,2]
[332330933,1721121052244,530.77047435,0.00014999,2]
[332330966,1721121052635,201.18725967,0.00014999,2]
[332330987,1721121052824,165.35665673,0.00014999,2]
[332331244,1721121055349,886.69945743,0.00014999,2]
[332331632,1721121059598,154.65203293,0.00014999,2]
[332332257,1721121065960,154.65203293,0.00014999,2]
[332334520,1721121089680,154.65203293,0.00015,2]
[332334778,1721121092337,196.09695636,0.00014999,2]
[332335146,1721121096036,154.84859034,0.00014999,2]
[332336330,1721121109448,155.57494819,0.00014999,2]
[332336375,1721121109882,182.15049026,0.00015,2]
[332337242,1721121118554,213.26694843,0.00014999,2]
[332337724,1721121124525,3778.72551572,0.00015,2]
[332337815,1721121133616,209.4773763,0.00014999,2]
[332337816,1721121133733,518.58506655,0.00014999,2]
[332337817,1721121133967,208.99220521,0.00014999,2]
[332337818,1721121137722,180.13782796,0.00014999,2]
[332337819,1721121138557,164.24975548,0.00014999,2]
[332337820,1721121138796,2136.54291105,0.00014999,2]
[332337821,1721121147511,402.97170091,0.00014999,2]
[332337822,1721121147974,16264.73280907,0.00014999,2]
[332337823,1721121148346,302.21332515,0.00014999,2]
[332337824,1721121149638,4703.84902292,0.00014999,2]
[332337825,1721121149906,2104.88948582,0.00014999,2]
[332337826,1721121151333,319.12146127,0.00014999,2]
[332337827,1721121151538,936.58820944,0.00014999,2]
[332337828,1721121153825,2841.14850519,0.00015,2]
[332337829,1721121158342,515.40622867,0.00014999,2]
[332337830,1721121160602,663.00132953,0.00014999,2]
[332337831,1721121164367,287.22746053,0.00014999,2]
[332337832,1721121164687,230.8151524,0.00014999,2]
[332337833,1721121165019,402.97170091,0.00014999,2]
[332337834,1721121166377,154.65203293,0.00014999,2]
[332337835,1721121166968,271.56382912,0.00014999,2]
[332337836,1721121167030,1216.69589402,0.00015,2]
[332337837,1721121168160,155.18897354,0.00014999,2]
[332337838,1721121168416,524.5847554,0.00014999,2]
[332337839,1721121168960,187.95535246,0.00014999,2]
[332337840,1721121170650,1989.67183354,0.00014999,2]
[332337841,1721121172992,10596.86547565,0.00014998,2]
[332337842,1721121175408,726.14786698,0.00014999,2]
[332337843,1721121178358,548.37522674,0.00014999,2]
[332337844,1721121178929,403.99333324,0.00014999,2]
[332337845,1721121180244,909.86541128,0.00014999,2]
[332337846,1721121182215,154.65203293,0.00014999,2]
[332337847,1721121183782,193.41409546,0.00014999,2]
[332337848,1721121188187,557.83597655,0.00015,2]
[332337849,1721121189746,160.0,0.00014999,2]
[332337850,1721121189886,950.73004336,0.00015,2]
[332337851,1721121194125,1106.91166223,0.00015,2]
[332337852,1721121194650,159.66495776,0.00014999,2]
[332337853,1721121195587,993.57430548,0.00014999,2]
[332337854,1721121196435,526.75484283,0.00014999,2]
[332337855,1721121197533,185.33362216,0.00014999,2]
[332337856,1721121198111,847.79900167,0.00014999,2]
[332337857,1721121199351,186.97357578,0.00014999,2]
[332337858,1721121199639,309.27320796,0.00014999,2]
[332337859,1721121199684,154.65203293,0.00015,2]
[332337860,1721121199729,2424.98079173,0.00015,2]
[332337861,1721121200143,201.48298984,0.00014999,2]
[332337862,1721121200403,283.70600683,0.00014999,2]
[332337863,1721121200887,950.73004336,0.00015,2]
[332337864,1721121202520,154.65203293,0.00014999,2]
[332337865,1721121205013,5509.92739811,0.00014998,2]
[332337866,1721121206751,1138.38032919,0.00014999,2]
[332337867,1721121208987,189.51973353,0.00014999,2]
[332337868,1721121212335,161.16291776,0.00014999,2]
[332337869,1721121213566,213.26694843,0.00015,2]
[332337870,1721121213957,2130.46951269,0.00014999,2]
[332337871,1721121214892,154.65203293,0.00015,2]
[332337872,1721121219834,165.35665673,0.00014999,2]
[332337873,1721121220100,5509.92739811,0.00014998,2]
[332337874,1721121225383,160.2295645,0.00014999,2]
[332337875,1721121226134,154.65203293,0.00014999,2]
[332337876,1721121227388,886.69945743,0.00014999,2]
[332337877,1721121227449,182.15049026,0.00015,2]
[332337878,1721121230343,195.80856601,0.00014999,2]
[332337879,1721121230679,778.26945323,0.00014999,2]
[332337880,1721121234260,530.77047435,0.00014999,2]
[332337881,1721121234650,4703.84902292,0.00014999,2]
[332337882,1721121237216,678.99585961,0.00014999,2]
[332337883,1721121240596,154.65203293,0.00014999,2]
[332337884,1721121240672,458.86286892,0.00014999,2]
[332337885,1721121240890,776.69042048,0.00014999,2]
[332337886,1721121240918,1328.19906534,0.00014999,2]
[332337887,1721121243529,340.18246093,0.00014999,2]
[332337888,1721121249828,426.2682403,0.00014999,2]
[332337889,1721121254966,258.07380329,0.00014999,2]
[332337890,1721121255950,16264.73280907,0.00014999,2]
[332337891,1721121259387,1254.4447302,0.00014999,2]
[332337892,1721121260101,154.65203293,0.00014999,2]
[332337893,1721121260470,208.99220521,0.00014999,2]
[332337894,1721121267738,179.98099039,0.00014999,2]
[332337895,1721121272071,154.65203293,0.00014999,2]
[332337896,1721121276230,518.58506655,0.00014999,2]
[332337897,1721121280635,1989.67183354,0.00014999,2]
[332337898,1721121284114,209.4773763,0.00014999,2]
[332337899,1721121292723,319.12146127,0.00014999,2]
[332337900,1721121297262,2841.14850519,0.00015,2]
[332337901,1721121297814,309.02656632,0.00014999,2]
[332337902,1721121298370,287.22746053,0.00014999,2]
[332337903,1721121299106,209.4773763,0.00014999,2]
[332337904,1721121300008,1230.45785193,0.00015,2]
[332337905,1721121303151,309.22993094,0.000157,2]
[332337906,1721121304960,187.95535246,0.00014999,2]
[332337907,1721121305524,154.65203293,0.00014999,2]
[332337908,1721121309900,523.24612638,0.00014999,2]
[332337909,1721121311934,402.66107921,0.00014999,2]
[332337910,1721121313578,213.26694843,0.00014999,2]
[332337911,1721121317914,726.14786698,0.00014999,2]
[332337912,1721121318378,154.65203293,0.00014999,2]
[332337913,1721121320590,663.00132953,0.00014999,2]
[332337914,1721121323620,4703.84902292,0.00014999,2]
[332337915,1721121327847,270.38675926,0.00014999,2]
[332337916,1721121333098,993.57430548,0.00014999,2]
[332337917,1721121336388,182.15049026,0.00014999,2]
[332337918,1721121341249,909.86541128,0.00014999,2]
[332337919,1721121349965,16264.73280907,0.00014999,2]
[332337920,1721121350274,283.70600683,0.00014999,2]
[332337921,1721121351888,2104.88948582,0.00014999,2]
[332337922,1721121352732,2424.98079173,0.00015,2]
[332337923,1721121356370,885.68093159,0.00014999,2]
[332337924,1721121357024,157.55050327,0.00014999,2]
[332337925,1721121359979,3009.41176207,0.00014999,2]
[332337926,1721121360163,778.26945323,0.00014999,2]
[332337927,1721121362930,2148.81625043,0.00014999,2]
[332337928,1721121363095,847.79900167,0.00014999,2]
[332337929,1721121364433,165.35665673,0.00014999,2]
[332337930,1721121365897,950.73004336,0.00015,2]
[332337931,1721121366391,182.15049026,0.00014999,2]
[332337932,1721121366941,2104.88948582,0.00014999,2]
[332337933,1721121371104,1106.91166223,0.00015,2]
[332337934,1721121379337,530.77047435,0.00014999,2]
[332337935,1721121379938,2130.46951269,0.00014999,2]
[332337936,1721121380574,155.98168272,0.00014999,2]
[332337937,1721121381566,936.58820944,0.00014999,2]
[332337938,1721121383013,2814.2222475,0.00014999,2]
[332337939,1721121384118,155.14496551,0.00014999,2]
[332337940,1721121386726,154.65203293,0.00014999,2]
[332337941,1721121387320,426.2682403,0.00014999,2]
[332337942,1721121391365,195.08367102,0.00014999,2]
[332337943,1721121400713,154.65203293,0.00014999,2]
[332337944,1721121402682,458.86286892,0.00014999,2]
[332337945,1721121403421,287.76568306,0.00015,2]
[332337946,1721121408280,309.24422996,0.00015,2]
[332337947,1721121415114,260.52209384,0.00014999,2]
[332337948,1721121416562,213.26694843,0.00015,2]
[332337949,1721121419651,800.23681373,0.00014999,2]
[332337950,1721121428481,208.99220521,0.00014999,2]
[332337951,1721121428633,4703.84902292,0.00015,2]
[332337952,1721121435740,319.12146127,0.00014999,2]
[332337953,1721121437879,154.65203293,0.00014999,2]
[332337954,1721121438249,518.58506655,0.00014999,2]
[332337955,1721121441271,996.56096874,0.00015,2]
[332337956,1721121442022,156.04342057,0.00014999,2]
[332337957,1721121442434,189.51973353,0.00014999,2]
[332337958,1721121450363,287.22746053,0.00014999,2]
[332337959,1721121452463,187.95535246,0.00014999,2]
[332337960,1721121452878,154.65203293,0.00014999,2]
[332337961,1721121455414,726.14786698,0.00014999,2]
[332337962,1721121458446,525.89628869,0.00014999,2]
[332337963,1721121461137,268.07105231,0.00014999,2]
[332337964,1721121464664,663.00132953,0.00014999,2]
[332337965,1721121472785,283.70600683,0.00014999,2]
[332337966,1721121475386,156.11736642,0.00014999,2]
[332337967,1721121475417,182.15049026,0.00015,2]
[332337968,1721121479090,993.57430548,0.00014999,2]
[332337969,1721121481462,9888.98986858,0.00015,2]
[332337970,1721121482606,909.86541128,0.00014999,2]
[332337971,1721121484421,287.5938579,0.00015,2]
[332337972,1721121485744,905.55298085,0.00015,2]
[332337973,1721121488938,2104.88948582,0.00015,2]
[332337974,1721121499393,240.27901755,0.00014999,2]
[332337975,1721121499851,278.62396913,0.00014999,2]
[332337976,1721121501530,707.02894153,0.00014999,2]
[332337977,1721121515734,230.17864655,0.00014999,2]
[332337978,1721121516576,213.26694843,0.00015,2]
[332337979,1721121517126,1019.24074343,0.00015,2]
[332337980,1721121525975,154.65203293,0.00014999,2]
[332337981,1721121527157,778.26945323,0.00014999,2]
[332337982,1721121532626,4703.84902292,0.00015,2]
[332337983,1721121535759,529.8414833,0.00014999,2]
[332337984,1721121539898,752.77386004,0.00015,2]
[332337985,1721121542115,847.79900167,0.00014999,2]
[332337986,1721121543570,935.49668652,0.00014999,2]
[332337987,1721121546332,295.18304429,0.00014999,2]
[332337988,1721121555389,182.15049026,0.00014999,2]
[332337989,1721121558736,154.65203293,0.00014999,2]
[332337990,1721121559760,518.58506655,0.00014999,2]
[332337997,1721121584945,189.51973353,0.00014999,2]
[332337998,1721121592821,458.86286892,0.00014999,2]
[332337999,1721121592853,318.34897833,0.00014999,2]
[332338000,1721121593533,403.21010018,0.00014999,2]
[332338001,1721121593939,2099.55308513,0.00014999,2]
[332338002,1721121593971,504.31929602,0.00014999,2]
[332338003,1721121600865,286.2023843,0.00014999,2]
[332338004,1721121606500,208.99220521,0.00014999,2]
[332338005,1721121610818,309.27320796,0.00014999,2]
[332338006,1721121611564,213.26694843,0.00014999,2]
[332338007,1721121617337,724.90913944,0.00014999,2]
[332338008,1721121624112,200.14375794,0.00014999,2]
[332338009,1721121629979,172.35222122,0.00014999,2]
[332338010,1721121632646,4703.84902292,0.00014999,2]
[332338011,1721121633997,186.82163029,0.00014999,2]
[332338012,1721121644086,662.02607943,0.00014999,2]
[332338013,1721121647787,909.86541128,0.00014999,2]
[332338014,1721121663090,760.65131274,0.00014999,2]
[332338015,1721121663793,283.61211581,0.00014999,2]
[332338016,1721121670411,182.15049026,0.00014999,2]
[332338017,1721121675434,272.36372956,0.00014999,2]
[332338018,1721121677450,778.26945323,0.00014999,2]
[332338019,1721121694401,240.27901755,0.00014999,2]
[332338020,1721121702601,213.26694843,0.00014999,2]
[332338021,1721121716126,847.79900167,0.00014999,2]
[332338022,1721121716815,518.58506655,0.00014999,2]
[332338023,1721121718696,458.86286892,0.00014999,2]
[332338024,1721121722647,3911.41986716,0.00014999,2]
[332338025,1721121736457,189.51973353,0.00014999,2]
[332338026,1721121749506,208.99220521,0.00014999,2]
[332338027,1721121752745,154.65203293,0.00014999,2]
[332338028,1721121755879,253.49654393,0.00014999,2]
[332338029,1721121782407,173.64336049,0.00014999,2]
[332338030,1721121788861,909.86541128,0.00014999,2]
[332338031,1721121789093,213.26694843,0.00014999,2]
[332338032,1721121795835,305.83767259,0.00014999,2]
[332338033,1721121800524,154.65203293,0.00014999,2]
[332338034,1721121818842,909.86541128,0.00014999,2]
[332338035,1721121822481,525.07409416,0.00014999,2]
[332338036,1721121822826,309.02656632,0.00014999,2]
[332338037,1721121827196,776.72320167,0.00014999,2]
[332338038,1721121829658,402.73174598,0.00014999,2]
[332338039,1721121866490,1086.146176,0.00015783,2]
[332338040,1721121882109,213.26694843,0.00014999,2]
[332338041,1721121882219,322.45689661,0.00014999,2]
[332338042,1721121884401,240.04431147,0.00014999,2]
[332338043,1721121888183,847.79900167,0.00014999,2]
[332338044,1721121897768,517.46306693,0.00014999,2]
[332338045,1721121903467,189.51973353,0.00014999,2]
[332338046,1721121907837,208.99220521,0.00014999,2]
[332338047,1721121925151,386.32333084,0.00015783,2]
[332338048,1721121925429,154.78207128,0.00015783,2]
[332338049,1721121933467,189.51973353,0.00014999,2]
[332338050,1721121952053,759.12069683,0.00022229,30]
[332338051,1721121952106,1575.28872573,0.00022229,30]
[332338052,1721121952157,3819.3444061,0.00022229,30]
[332338053,1721121963525,155.61842422,0.00014999,2]
[332338054,1721121977334,909.86541128,0.00014999,2]
[332338055,1721121984075,213.26694843,0.00015783,2]
[332338057,1721122052756,159.30566568,0.00014999,2]
[332338058,1721122056883,250.0,0.00015787,2]
[332338059,1721122060954,524.3970699,0.00014999,2]
[332338060,1721122071162,161.185056,0.00015815,2]
[332338061,1721122081447,24900.0,0.00015487,2]
[332338063,1721122086598,403.003832,0.00014999,2]
[332338064,1721122093162,756.85922627,0.00014999,2]
[332338065,1721122095079,304.30202537,0.00015783,2]
[332338066,1721122095144,-161.185056,0.0001609,2]
[332338069,1721122095173,-196.76065272,0.0001615,2]
[332338072,1721122095202,-194.86326277,0.000162,2]
[332338073,1721122095238,-209.66719052,0.000162,2]
[332338075,1721122095274,-4.76344531,0.000162,2]
[332338076,1721122095305,-548.04552618,0.0001625,2]
[332338080,1721122099345,240.35082246,0.00014999,2]
[332338090,1721122126915,909.86541128,0.00014999,2]
[332338091,1721122144523,168.32012091,0.00014999,2]
[332338098,1721122159382,-316.73376833,0.0001625,2]
[332338589,1721122238722,-323.73278094,0.0001625,2]
[332338591,1721122238735,-1100.48792455,0.0001625,2]
[332338593,1721122238745,-240.05074192,0.00016255,2]
[332338596,1721122238755,-237.22605744,0.00016255,2]
[332338598,1721122238765,-295.6489213,0.00016255,2]
[332338600,1721122238774,-161.185056,0.00016365,2]
[332338603,1721122238784,-2216.3774935,0.00016404,2]
[332338607,1721122238794,-161.185056,0.00016639,2]
[332338609,1721122238803,-457.3646311,0.00016781,2]
[332338612,1721122238812,-2521.28656069,0.00018,2]
[332338614,1721122238822,-200.5445808,0.00018182,2]
[332338616,1721122238832,-4894.59802768,0.00018798,2]
[332338619,1721122238854,-22858.23522426,0.00018798,2]
[332338681,1721122239840,-2247.16674806,0.00018798,2]
[332338683,1721122239849,-355.61980831,0.000189,2]
[332338685,1721122239859,-154.65203293,0.0002,2]
[332338687,1721122239870,-154.66497417,0.0002,2]
[332338689,1721122239880,-428.71334484,0.0002,2]
[332338691,1721122239889,-309.11901082,0.0002,2]
[332338693,1721122239899,-620.0002179,0.00020975,2]
[332338695,1721122239909,-285.0,0.00021,2]
[332338697,1721122239919,-320.988876,0.00021096,2]
[332338699,1721122239929,-151.0,0.00021728,2]
[332338701,1721122239938,-331.37,0.00021897,3]
[332338703,1721122239948,-3000.0,0.000219,2]
[332338705,1721122239958,-26677.12071115,0.00021907,3]
[332339114,1721122243830,-150.0,0.000219,2]
[332339116,1721122243840,-210.0,0.000219,2]
[332339118,1721122243850,-225.0,0.000219,2]
[332339120,1721122243859,-6845.32245414,0.00021907,3]
[332339412,1721122246852,-24461.48101868,0.00021907,3]
[332339415,1721122246866,-6304.0,0.00021907,3]
[332340744,1721122476195,178.5781464,0.00014999,2]
[332340745,1721122480183,485.49419761,0.00014999,2]
[332340746,1721122513727,155.11624249,0.00014999,2]
[332341364,1721123437914,-300.0,0.00016254,2]
[332341365,1721123437926,-17276.36712772,0.00016255,2]
[332341366,1721123437939,-1106.99395427,0.00016633,2]
[332341367,1721123437949,-24900.0,0.00016684,2]
[332341368,1721123437959,-543.073088,0.00016733,2]
[332341369,1721123437968,-7021.76715394,0.0001799,2]
[332341370,1721123437978,-99016.20933147,0.00018,2]
[332341371,1721123437987,-30000.0,0.00018898,2]
[332341372,1721123437997,-1106.99395421,0.00019243,2]
[332341373,1721123438009,-664.97970643,0.00019807,2]